fUSD/lending_fUSD_20260121
["ID","MTS","AMOUNT","RATE_DAILY","PERIOD"]
[402990562,1769025221293,-341.96796575,0.00016138,2]
[402990563,1769025224370,-267.10960323,0.00016138,2]
[402990564,1769025226350,-241.82660523,0.00016138,2]
[402990565,1769025229414,-222.83997705,0.00016138,2]
[402990566,1769025232014,-303.0480494,0.00016138,2]
[402990567,1769025234765,-205.66373875,0.00016138,2]
[402990568,1769025237414,-166.66,0.00016138,2]
[402990569,1769025239569,-267.8892582,0.00016138,2]
[402990570,1769025242023,-271.72159346,0.00016137,2]
[402990571,1769025244101,-28.27840654,0.00016137,2]
[402990572,1769025244123,-158.32296483,0.00016137,2]
[402990573,1769025246978,-170.67193967,0.00016137,2]
[402990574,1769025247995,-192.72668896,0.00016137,2]
[402990575,1769025250138,-28.27840654,0.00016137,2]
[402990576,1769025250160,-246.0,0.00016137,2]
[402990577,1769025250181,-4.94307954,0.00016137,2]
[402990578,1769025252993,-253.16067858,0.00016137,2]
[402990579,1769025256072,-41.89624188,0.00016137,2]
[402990580,1769025256095,-300.0,0.00016137,2]
[402990581,1769025256116,-77.83798072,0.00016138,2]
[402990582,1769025261642,-185.8639148,0.00016137,2]
[402990583,1769025266297,-9.1360852,0.00016137,2]
[402990584,1769025266319,-410.17144493,0.00016138,2]
[402990585,1769025269887,-202.97204716,0.00016138,2]
[402990586,1769025271936,-300.0,0.00016138,2]
[402990587,1769025275933,-350.35905715,0.00016138,2]
[402990588,1769025278608,-171.73004629,0.00016138,2]
[402990589,1769025281241,-344.39196226,0.00016138,2]
[402990590,1769025283313,-295.39932112,0.00016138,2]
[402990591,1769025285396,-251.13065065,0.00016138,2]
[402990592,1769025288404,-96.00748972,0.00016138,2]
[402990593,1769025288431,-109.03396292,0.00016138,2]
[402990594,1769025291270,-173.26668354,0.00016138,2]
[402990595,1769025291294,-205.24456218,0.00016138,2]
[402990596,1769025293419,-277.69502588,0.00016138,2]
[402990597,1769025295787,-176.79782439,0.00016138,2]
[402990598,1769025298694,-212.27077216,0.00016137,2]
[402990599,1769025301649,-152.59314192,0.00016137,2]
[402990600,1769025303098,-82.88040252,0.00016137,2]
[402990601,1769025303125,-109.78983015,0.00016137,2]
[402990602,1769025305109,-169.88456738,0.00016137,2]
[402990603,1769025306744,-20.32560247,0.00016137,2]
[402990604,1769025306767,-272.11469818,0.00016137,2]
[402990605,1769025310865,-27.88530182,0.00016137,2]
[402990606,1769025310890,-232.63347368,0.00016137,2]
[402990607,1769025312410,-176.30234567,0.00016137,2]
[402990608,1769025314183,-215.81456169,0.00016137,2]
[402990609,1769025317719,-254.84613125,0.00016137,2]
[402990610,1769025319811,-199.60368176,0.00016137,2]
[402990611,1769025322553,-120.79980595,0.00016137,2]
[402990612,1769025322575,-79.35448131,0.00016137,2]
[402990613,1769025322636,698.63131118,0.00016038,2]
[402990614,1769025322659,7532.58428882,0.00016038,2]
[402990615,1769025325588,-127.74556334,0.00016137,2]
[402990616,1769025325616,-72.39845228,0.00016138,2]
[402990617,1769025327292,-154.69979071,0.00016138,2]
[402990618,1769025329667,-312.35978192,0.00016138,2]
[402990619,1769025332784,-187.64021808,0.00016138,2]
[402990620,1769025334886,-167.17532628,0.00016138,2]
[402990621,1769025338121,-292.27244388,0.00016138,2]
[402990622,1769025342408,-200.0,0.00016138,2]
[402990623,1769025345143,-237.60161812,0.00016138,2]
[402990624,1769025350097,-183.86301736,0.00016138,2]
[402990625,1769025353330,-356.39813618,0.00016138,2]
[402990626,1769025355874,-175.68786292,0.00016138,2]
[402990627,1769025357405,-182.4341895,0.00016138,2]
[402990628,1769025362560,-352.83762088,0.00016138,2]
[402990629,1769025365158,-210.16363546,0.00016138,2]
[402990630,1769025366600,-180.14659574,0.00016138,2]
[402990631,1769025368409,-206.69690622,0.00016138,2]
[402990632,1769025372293,-165.08698617,0.00016138,2]
[402990633,1769025374055,-188.4327386,0.00016138,2]
[402990634,1769025376515,-297.02273188,0.00016138,2]
[402990635,1769025380851,-204.83220694,0.00016138,2]
[402990636,1769025386127,-166.71859657,0.00016138,2]
[402990637,1769025388511,-228.27248753,0.00016138,2]
[402990638,1769025390760,-151.24116048,0.00016138,2]
[402990639,1769025393318,-348.75883952,0.00016138,2]
[402990640,1769025395057,-316.13698264,0.00016138,2]
[402990641,1769025396440,-254.53843363,0.00016138,2]
[402990642,1769025399172,-188.37920448,0.00016138,2]
[402990643,1769025401389,-300.0,0.00016138,2]
[402990644,1769025405095,-211.35592782,0.00016138,2]
[402990645,1769025408278,-251.01652615,0.00016138,2]
[402990646,1769025410518,-317.24211769,0.00016138,2]
[402990647,1769025412437,-367.24701594,0.00016138,2]
[402990648,1769025414343,-423.92275899,0.00016138,2]
[402990649,1769025415450,-241.89086637,0.00016138,2]
[402990650,1769025417549,-156.27,0.00016138,2]
[402990651,1769025421987,-293.9178257,0.00016138,2]
[402990652,1769025424711,-224.91304336,0.00016137,2]
[402990653,1769025427590,-75.08695664,0.00016137,2]
[402990654,1769025427612,-96.78994016,0.00016137,2]
[402990655,1769025431364,-191.61455368,0.00016137,2]
[402990656,1769025433424,-261.59550616,0.00016137,2]
[402990657,1769025433446,-20.26491432,0.00016137,2]
[402990658,1769025436807,-279.73508568,0.00016137,2]
[402990659,1769025436829,-26.04625935,0.00016138,2]
[402990660,1769025439436,-152.63185,0.00016138,2]
[402990661,1769025446300,-195.98,0.00016138,2]
[402990662,1769025448380,-268.11633088,0.00016086,2]
[402990663,1769025450545,-313.91034674,0.00016086,2]
[402990664,1769025452356,-200.0,0.00016086,2]
[402990665,1769025453905,-167.86917764,0.00016086,2]
[402990666,1769025456898,-417.16755992,0.00016086,2]
[402990667,1769025458686,-302.0,0.00016086,2]
[402990668,1769025463116,-310.54156861,0.00016086,2]
[402990669,1769025464642,-392.40814424,0.00016086,2]
[402990670,1769025466110,-166.02656855,0.00016086,2]
[402990671,1769025467634,-157.99311584,0.00016086,2]
[402990672,1769025469828,-289.46022887,0.00016086,2]
[402990673,1769025471085,-2667.54685561,0.00016086,2]
[402990674,1769025471113,-1099.69375585,0.00016138,2]
[402990675,1769025472535,-292.06724909,0.00016138,2]
[402990676,1769025479394,-228.38296944,0.00016138,2]
[402990677,1769025481261,-248.60040813,0.00016138,2]
[402990678,1769025485293,-255.88840929,0.00016138,2]
[402990679,1769025487407,-329.60072702,0.00016138,2]
[402990680,1769025490495,-220.54251313,0.00016138,2]
[402990681,1769025492444,-254.51757795,0.00016138,2]
[402990682,1769025494586,-171.63552027,0.00016138,2]
[402990683,1769025496212,-214.24848571,0.00016138,2]
[402990684,1769025499002,-184.00139913,0.00016138,2]
[402990685,1769025501078,-163.1839078,0.00016138,2]
[402990686,1769025506181,-285.51971993,0.00016138,2]
[402990687,1769025510170,-200.57604426,0.00016138,2]
[402990688,1769025511449,2465.52877708,0.00016119,2]
[402990689,1769025511476,969.74531452,0.00016119,2]
[402990690,1769025512262,-405.15180338,0.00016138,2]
[402990691,1769025514313,-333.27214683,0.00016138,2]
[402990692,1769025516133,-207.93275091,0.00016138,2]
[402990693,1769025519862,-155.24071074,0.00016138,2]
[402990694,1769025521429,-353.37159472,0.00016138,2]
[402990695,1769025524369,-340.09258437,0.00016138,2]
[402990696,1769025526042,-432.12825019,0.00016138,2]
[402990697,1769025528798,7621.75179543,0.00016086,2]
[402990698,1769025529060,-268.1609877,0.00016138,2]
[402990699,1769025530969,-276.03722908,0.00016138,2]
[402990700,1769025534560,-333.63861146,0.00016138,2]
[402990701,1769025538363,-213.62198582,0.00016138,2]
[402990702,1769025541574,-899.12809329,0.00016138,2]
[402990703,1769025541684,300.0,0.00016137,2]
[402990704,1769025542718,-273.29252127,0.00016138,2]
[402990705,1769025547739,-213.91614905,0.00016138,2]
[402990707,1769025553150,-252.85258151,0.00016138,2]
[402990708,1769025555038,-405.0,0.00016138,2]
[402990709,1769025556953,-159.0032352,0.00016138,2]
[402990710,1769025558615,-199.92045607,0.00016138,2]
[402990711,1769025562822,-300.0,0.00016138,2]
[402990712,1769025563189,377.7955776,0.0001612,2]
[402990713,1769025564818,-205.28648796,0.00016138,2]
[402990714,1769025567592,-224.9970293,0.00016138,2]
[402990715,1769025569554,-183.381527,0.00016138,2]
[402990716,1769025572806,-183.41015407,0.00016138,2]
[402990717,1769025575291,-228.01290191,0.00016138,2]
[402990718,1769025576710,-196.80490656,0.00016138,2]
[402990719,1769025581841,-217.05187497,0.00016138,2]
[402990720,1769025585057,391.77627699,0.00016086,2]
[402990721,1769025586022,-156.99260718,0.00016138,2]
[402990722,1769025588764,-289.00083386,0.00016138,2]
[402990723,1769025591365,-199.3975938,0.00016138,2]
[402990724,1769025597380,-399.30939117,0.00016138,2]
[402990725,1769025600105,-333.12615461,0.00016138,2]
[402990726,1769025601399,338.94103546,0.00016137,2]
[402990727,1769025601423,861.05896454,0.00016137,2]
[402990728,1769025601616,550.0,0.00016137,2]
[402990729,1769025602765,-159.57822226,0.00016138,2]
[402990730,1769025605725,-359.27818828,0.00016138,2]
[402990731,1769025607470,163.4,0.00016128,2]
[402990732,1769025607692,163.4,0.00016128,2]
[402990733,1769025607922,163.4,0.00016128,2]
[402990734,1769025608069,163.4,0.00016128,2]
[402990735,1769025608993,300.0,0.00016137,2]
[402990736,1769025609314,-381.96123915,0.00016138,2]
[402990737,1769025609555,968.96,0.00016128,2]
[402990738,1769025609780,968.96,0.00016128,2]
[402990739,1769025615254,-360.67950458,0.00016138,2]
[402990740,1769025618023,-334.0474921,0.00016138,2]
[402990741,1769025621791,-240.68893856,0.00016138,2]
[402990742,1769025626368,-210.64922317,0.00016138,2]
[402990743,1769025628975,-249.69930692,0.00016138,2]
[402990744,1769025633610,-246.12139116,0.00016138,2]
[402990745,1769025635329,-300.13472522,0.00016138,2]
[402990746,1769025636813,-188.37172442,0.00016138,2]
[402990747,1769025639956,-215.93612427,0.00016138,2]
[402990748,1769025647104,-297.36460161,0.00016138,2]
[402990749,1769025652119,-190.08630027,0.00016138,2]
[402990750,1769025653381,288.06399842,0.00016137,2]
[402990751,1769025654138,-473.66195779,0.00016138,2]
[402990752,1769025657861,-244.2133375,0.00016138,2]
[402990753,1769025661085,-231.39722472,0.00016138,2]
[402990754,1769025663094,-160.79240547,0.00016138,2]
[402990755,1769025665727,-155.82606753,0.00016138,2]
[402990756,1769025667297,-253.87860884,0.00016138,2]
[402990757,1769025668447,-300.0,0.00016138,2]
[402990758,1769025670546,244.7971,0.00016038,2]
[402990759,1769025673083,-176.8672326,0.00016138,2]
[402990760,1769025675733,-280.27723558,0.00016138,2]
[402990761,1769025676359,532.76082309,0.00016137,2]
[402990762,1769025677101,511.14545449,0.00016137,2]
[402990763,1769025678098,-305.92509768,0.00016138,2]
[402990764,1769025679302,-166.4942519,0.00016138,2]
[402990765,1769025681093,-187.04670374,0.00016138,2]
[402990766,1769025685879,500.0,0.00016137,2]
[402990767,1769025685915,500.0,0.00016137,2]
[402990768,1769025685951,500.0,0.00016137,2]
[402990769,1769025686020,500.0,0.00016137,2]
[402990770,1769025686081,337.21220376,0.00016137,2]
[402990771,1769025686114,500.0,0.00016137,2]
[402990772,1769025686174,500.0,0.00016137,2]
[402990773,1769025686219,500.0,0.00016137,2]
[402990774,1769025686257,283.4514557,0.00016137,2]
[402990775,1769025686283,216.5485443,0.00016137,2]
[402990776,1769025686345,500.0,0.00016137,2]
[402990777,1769025686382,500.0,0.00016137,2]
[402990778,1769025686446,500.0,0.00016137,2]
[402990779,1769025686506,500.0,0.00016137,2]
[402990780,1769025686544,500.0,0.00016137,2]
[402990781,1769025686582,500.0,0.00016137,2]
[402990782,1769025686622,500.0,0.00016137,2]
[402990783,1769025686660,500.0,0.00016137,2]
[402990784,1769025686695,500.0,0.00016137,2]
[402990785,1769025686753,500.0,0.00016137,2]
[402990786,1769025686793,500.0,0.00016137,2]
[402990787,1769025686851,500.0,0.00016137,2]
[402990788,1769025687583,657.8525816,0.00016138,2]
[402990789,1769025687616,500.0,0.00016137,2]
[402990790,1769025687656,500.0,0.00016137,2]
[402990791,1769025687706,500.0,0.00016137,2]
[402990792,1769025687744,500.0,0.00016137,2]
[402990793,1769025687787,500.0,0.00016137,2]
[402990794,1769025687852,500.0,0.00016137,2]
[402990795,1769025687891,125.6088741,0.00016137,2]
[402990796,1769025692434,-500.0,0.00016137,2]
[402990797,1769025692702,-374.3911259,0.00016137,2]
[402990798,1769025692747,-500.0,0.00016137,2]
[402990799,1769025692778,-500.0,0.00016137,2]
[402990800,1769025692810,-500.0,0.00016137,2]
[402990801,1769025692841,-500.0,0.00016137,2]
[402990802,1769025692872,-500.0,0.00016137,2]
[402990803,1769025692904,-500.0,0.00016137,2]
[402990804,1769025692937,-500.0,0.00016137,2]
[402990805,1769025692972,-500.0,0.00016137,2]
[402990806,1769025694278,2276.582,0.00015815,2]
[402990807,1769025694848,247.221,0.00015815,2]
[402990808,1769025695937,-160.21303988,0.00016137,2]
[402990809,1769025700978,-339.78696012,0.00016137,2]
[402990810,1769025701002,-43.94489172,0.00016137,2]
[402990811,1769025703241,-170.11123983,0.00016137,2]
[402990812,1769025707421,-285.94386845,0.00016137,2]
[402990813,1769025707444,-8.23000074,0.00016137,2]
[402990814,1769025709671,-249.76565609,0.00016137,2]
[402990815,1769025712545,-221.84434696,0.00016137,2]
[402990816,1769025716199,-20.15999621,0.00016137,2]
[402990817,1769025716226,-168.44327776,0.00016137,2]
[402990818,1769025717807,-300.44237086,0.00016137,2]
[402990819,1769025719850,-31.11435138,0.00016137,2]
[402990820,1769025719876,-324.22602548,0.00016137,2]
[402990821,1769025720352,176.6698735,0.00016037,2]
[402990822,1769025721784,-175.77397452,0.00016137,2]
[402990823,1769025721810,-53.17642948,0.00016137,2]
[402990824,1769025725523,-250.0,0.00016137,2]
[402990825,1769025725889,176.6698735,0.0001605,2]
[402990826,1769025728593,-161.30683598,0.00016137,2]
[402990827,1769025731224,-35.51673454,0.00016137,2]
[402990828,1769025731255,-261.01819142,0.00016137,2]
[402990829,1769025731742,176.6698735,0.00016062,2]
[402990830,1769025734301,-166.59763096,0.00016137,2]
[402990831,1769025736123,-312.7131516,0.00016137,2]
[402990832,1769025740987,-179.11384868,0.00016137,2]
[402990833,1769025742848,-174.51467004,0.00016137,2]
[402990834,1769025744593,-209.21893678,0.00016137,2]
[402990835,1769025746169,-153.59132081,0.00016137,2]
[402990836,1769025750599,-229.37692669,0.00016137,2]
[402990837,1769025752683,-307.0706343,0.00016137,2]
[402990838,1769025754718,-8.5624533,0.00016137,2]
[402990839,1769025754743,-72.38417762,0.00016137,2]
[402990840,1769025754769,-75.26329694,0.00016137,2]
[402990841,1769025761768,-302.94127204,0.00016137,2]
[402990842,1769025766157,-121.79543102,0.00016137,2]
[402990843,1769025766184,-199.81268958,0.00016137,2]
[402990844,1769025770831,-159.77860431,0.00016137,2]
[402990845,1769025773437,-140.40870611,0.00016137,2]
[402990846,1769025773464,-500.0,0.00016137,2]
[402990847,1769025773490,-134.73652916,0.00016137,2]
[402990848,1769025775948,-223.11585367,0.00016137,2]
[402990849,1769025778371,-142.14761717,0.00016137,2]
[402990850,1769025778398,-90.70082663,0.00016137,2]
[402990851,1769025781207,-183.93075916,0.00016137,2]
[402990852,1769025781343,500.0,0.00015922,2]
[402990853,1769025783096,-164.736033,0.00016136,2]
[402990854,1769025784406,-135.263967,0.00016136,2]
[402990855,1769025784430,-314.736033,0.00016136,2]
[402990856,1769025787211,-235.263967,0.00016136,2]
[402990857,1769025787237,-205.68616182,0.00016137,2]
[402990858,1769025788882,-19.68225239,0.00016137,2]
[402990859,1769025788908,-173.03357592,0.00016137,2]
[402990860,1769025791064,-182.90599203,0.00016137,2]
[402990861,1769025791405,-144.06043205,0.00016137,2]
[402990862,1769025791436,-500.0,0.00016137,2]
[402990863,1769025791469,-500.0,0.00016137,2]
[402990864,1769025791500,-500.0,0.00016137,2]
[402990865,1769025791529,-500.0,0.00016137,2]
[402990866,1769025791560,-500.0,0.00016137,2]
[402990867,1769025791590,-172.17281764,0.00016137,2]
[402990868,1769025791624,-500.0,0.00016137,2]
[402990869,1769025791657,-500.0,0.00016137,2]
[402990870,1769025791689,-500.0,0.00016137,2]
[402990871,1769025791721,-500.0,0.00016137,2]
[402990872,1769025793122,-173.73524533,0.00016089,2]
[402990873,1769025794101,-165.28823813,0.00016089,2]
[402990874,1769025794333,-1809.03651654,0.00016089,2]
[402990875,1769025794370,-500.0,0.00016137,2]
[402990876,1769025794430,-500.0,0.00016137,2]
[402990877,1769025794496,-500.0,0.00016137,2]
[402990878,1769025794555,-250.0,0.00016138,2]
[402990879,1769025796619,-152.55509174,0.00016138,2]
[402990880,1769025798560,-189.91285204,0.00016138,2]
[402990881,1769025799895,1200.0,0.00016137,2]
[402990882,1769025804053,-320.73714796,0.00016138,2]
[402990883,1769025804813,1681.93696692,0.00016038,2]
[402990884,1769025804835,315.81933308,0.00016038,2]
[402990885,1769025805852,-237.64234053,0.00016138,2]
[402990886,1769025807460,-158.36172704,0.00016138,2]
[402990887,1769025810270,-427.90758935,0.00016138,2]
[402990888,1769025811832,-182.90205909,0.00016138,2]
[402990889,1769025814410,-235.34687346,0.00016138,2]
[402990890,1769025816198,-272.09241065,0.00016138,2]
[402990891,1769025817707,-346.90915073,0.00016138,2]
[402990892,1769025819278,-280.24673508,0.00016138,2]
[402990893,1769025820819,-324.57643202,0.00016138,2]
[402990894,1769025822392,-170.81,0.00016138,2]
[402990895,1769025825110,-450.22627817,0.00016138,2]
[402990896,1769025826546,-297.20141665,0.00016138,2]
[402990897,1769025828767,-431.28818409,0.00016138,2]
[402990898,1769025832027,-257.03806775,0.00016138,2]
[402990899,1769025833502,-161.40100726,0.00016138,2]
[402990900,1769025835745,5409.50637123,0.0001605,2]
[402990901,1769025836056,-385.47447946,0.00016138,2]
[402990902,1769025838258,-184.38641674,0.00016138,2]
[402990903,1769025840895,-218.24227358,0.00016138,2]
[402990904,1769025842957,-191.36008041,0.00016138,2]
[402990905,1769025844607,-213.29864189,0.00016138,2]
[402990906,1769025847721,-259.43,0.00016138,2]
[402990907,1769025850432,-365.18271742,0.00016138,2]
[402990908,1769025853158,-280.0,0.00016138,2]
[402990909,1769025855248,-290.48587819,0.00016138,2]
[402990910,1769025858485,-253.18695294,0.00016138,2]
[402990911,1769025862286,-165.55834094,0.00016138,2]
[402990912,1769025864783,-201.28433964,0.00016138,2]
[402990913,1769025865876,442.11922328,0.0001605,2]
[402990914,1769025867169,-236.39367648,0.00016138,2]
[402990915,1769025871303,-236.36609907,0.00016138,2]
[402990916,1769025872769,-236.8865675,0.00016138,2]
[402990917,1769025875625,-344.33935801,0.00016138,2]
[402990918,1769025877510,-482.81304744,0.00016138,2]
[402990919,1769025879971,-199.59492798,0.00016138,2]
[402990920,1769025882259,-189.22538728,0.00016138,2]
[402990921,1769025884768,-209.51412181,0.00016138,2]
[402990922,1769025889828,-211.27492665,0.00016138,2]
[402990923,1769025901242,1200.0,0.00016137,2]
[402990924,1769025924703,500.0,0.00016137,2]
[402990925,1769025925203,500.0,0.00016137,2]
[402990926,1769025925385,500.0,0.00016137,2]
[402990927,1769025925675,500.0,0.00016137,2]
[402990928,1769025926878,500.0,0.00016137,2]
[402990929,1769025927132,132.56507241,0.00016137,2]
[402990930,1769025937739,462.0,0.00016064,2]
[402990931,1769025938292,150.0,0.00016064,2]
[402990932,1769025938358,150.0,0.00016064,2]
[402990933,1769025940191,150.0,0.00016064,2]
[402990934,1769025943067,150.0,0.00016064,2]
[402990935,1769025997132,419.83160735,0.0001605,2]
[402990936,1769026005513,1000.0,0.00016037,2]
[402990937,1769026036921,500.0,0.00016037,2]
[402990938,1769026043470,7018.17839265,0.0001605,2]
[402990939,1769026043494,1153.62858441,0.0001605,2]
[402990940,1769026053166,443.0,0.00016064,2]
[402990941,1769026056834,500.0,0.00016064,2]
[402990942,1769026058830,150.0,0.00016064,2]
[402990943,1769026060107,500.0,0.00016064,2]
[402990944,1769026061265,224.73746907,0.00016064,2]
[402990945,1769026061325,726.0,0.00016064,2]
[402990946,1769026061651,566.0,0.00016064,2]
[402990947,1769026062817,500.0,0.00016064,2]
[402990948,1769026062946,150.0,0.00016064,2]
[402990949,1769026062996,500.0,0.00016064,2]
[402990950,1769026065070,500.0,0.00016064,2]
[402990951,1769026065391,500.0,0.00016064,2]
[402990952,1769026067567,500.0,0.00016064,2]
[402990953,1769026080226,177.59505598,0.00016019,2]
[402990954,1769026151275,463.10612482,0.00016038,2]
[402990955,1769026188657,199.97,0.0001283,2]
[402990956,1769026188906,199.97,0.00014113,2]
[402990957,1769026189140,199.97,0.00015395,2]
[402990958,1769026223361,4868.55573408,0.00016038,2]
[402990959,1769026226717,4068.4381411,0.00016038,2]
[402990960,1769026226744,10000.01,0.00016038,2]
[402990961,1769026226771,10000.01,0.00016038,2]
[402990962,1769026226796,10000.01,0.00016038,2]
[402990963,1769026226822,10000.01,0.00016038,2]
[402990964,1769026227106,10000.01,0.00016038,2]
[402990965,1769026227134,10000.01,0.00016038,2]
[402990966,1769026227162,10000.01,0.00016038,2]
[402990967,1769026227188,10000.01,0.00016038,2]
[402990968,1769026227217,10000.01,0.00016038,2]
[402990969,1769026227529,-220.07851726,0.00016038,2]
[402990970,1769026229504,-158.50428481,0.00016038,2]
[402990975,1769026232365,-312.50627765,0.00016038,2]
[402990976,1769026232554,-487.79861401,0.00016037,2]
[402990977,1769026232607,-12.20138599,0.00016037,2]
[402990978,1769026232618,-500.0,0.00016037,2]
[402990979,1769026232628,-418.60861401,0.00016037,2]
[402990980,1769026232877,-81.39138599,0.00016037,2]
[402990981,1769026232887,-300.0,0.00016037,2]
[402990982,1769026232897,-617.60861401,0.00016038,2]
[402990983,1769026232908,-2869.89026542,0.00016038,2]
[402990984,1769026235672,-319.18419913,0.00016038,2]
[402990985,1769026237274,-222.5250911,0.00016038,2]
[402990986,1769026237774,-4122.16458829,0.00016038,2]
[402990987,1769026237824,-10000.01,0.00016038,2]
[402990988,1769026237890,-10000.01,0.00016038,2]
[402990989,1769026237937,-10000.01,0.00016038,2]
[402990990,1769026237975,-10000.01,0.00016038,2]
[402990991,1769026238157,-911.35867628,0.00016038,2]
[402990992,1769026238179,-856177.61134495,0.00016038,2]
[402990993,1769026238189,-1200.0,0.00016118,2]
[402990994,1769026238198,-308.0,0.00016118,2]
[402990995,1769026238210,-1200.0,0.00016118,2]
[402990996,1769026238220,-300.0,0.00016118,2]
[402990997,1769026238230,-201.01483651,0.00016118,2]
[402990998,1769026238240,-462.0,0.00016119,2]
[402990999,1769026238250,-150.0,0.00016119,2]
[402991000,1769026238260,-150.0,0.00016119,2]
[402991001,1769026238270,-150.0,0.00016119,2]
[402991002,1769026238280,-150.44237086,0.00016119,2]
[402991003,1769026238290,-443.0,0.00016119,2]
[402991004,1769026238300,-500.0,0.00016119,2]
[402991005,1769026238310,-500.0,0.00016119,2]
[402991006,1769026238319,-726.0,0.00016119,2]
[402991007,1769026238328,-566.0,0.00016119,2]
[402991008,1769026238338,-500.0,0.00016119,2]
[402991009,1769026238348,-150.0,0.00016119,2]
[402991010,1769026238357,-550.0,0.00016119,2]
[402991011,1769026238367,-500.0,0.00016119,2]
[402991012,1769026238378,-500.0,0.00016119,2]
[402991013,1769026238387,-500.0,0.00016119,2]
[402991014,1769026238397,-250.0,0.00016123,2]
[402991015,1769026238408,-195.0,0.00016127,2]
[402991016,1769026238418,-1000.0,0.00016137,2]
[402991017,1769026238428,-182.48947764,0.00016137,2]
[402991018,1769026238443,-500.0,0.00016137,2]
[402991019,1769026238455,-500.0,0.00016137,2]
[402991020,1769026238465,-500.0,0.00016137,2]
[402991021,1769026238475,-500.0,0.00016137,2]
[402991022,1769026238485,-561.44150394,0.00016137,2]
[402991023,1769026238495,-1273.57,0.00016137,2]
[402991024,1769026238505,-1273.57,0.00016137,2]
[402991026,1769026238515,-1273.57,0.00016137,2]
[402991028,1769026238524,-1273.57,0.00016137,2]
[402991030,1769026238535,-234.42590919,0.00016138,2]
[402991032,1769026238545,-562.10624529,0.00016138,2]
[402991034,1769026238555,-151.0,0.00016138,2]
[402991036,1769026238565,-151.0,0.00016138,2]
[402991038,1769026238575,-500.0,0.00016138,2]
[402991040,1769026238585,-151.0,0.00016138,2]
[402991042,1769026238595,-500.0,0.00016138,2]
[402991044,1769026238604,-182.52799568,0.00016138,2]
[402991046,1769026238613,-500.0,0.00016138,2]
[402991048,1769026238623,-500.0,0.00016138,2]
[402991049,1769026238632,-500.0,0.00016138,2]
[402991050,1769026238642,-500.0,0.00016138,2]
[402991051,1769026238652,-500.0,0.00016138,2]
[402991052,1769026238661,-500.0,0.00016138,2]
[402991053,1769026238671,-500.0,0.00016138,2]
[402991054,1769026238681,-500.0,0.00016138,2]
[402991055,1769026238691,-500.0,0.00016138,2]
[402991056,1769026238701,-500.0,0.00016138,2]
[402991057,1769026238712,-500.0,0.00016138,2]
[402991058,1769026238936,-500.0,0.00016138,2]
[402991059,1769026238951,-500.0,0.00016138,2]
[402991060,1769026238962,-500.0,0.00016138,2]
[402991061,1769026238972,-381.39876962,0.00016138,2]
[402991062,1769026238982,-500.0,0.00016138,2]
[402991063,1769026238991,-500.0,0.00016138,2]
[402991064,1769026239001,-500.0,0.00016138,2]
[402991065,1769026239011,-500.0,0.00016138,2]
[402991066,1769026239020,-500.0,0.00016138,2]
[402991067,1769026239029,-200.0,0.00016138,2]
[402991068,1769026239039,-500.0,0.00016138,2]
[402991069,1769026239048,-200.0,0.00016138,2]
[402991070,1769026239059,-150.0,0.00016138,2]
[402991071,1769026239070,-500.0,0.00016138,2]
[402991072,1769026239081,-462.0,0.00016174,2]
[402991073,1769026239091,-200.0,0.00016174,2]
[402991074,1769026239100,-200.0,0.00016174,2]
[402991075,1769026239110,-150.0,0.00016174,2]
[402991076,1769026239120,-443.0,0.00016174,2]
[402991077,1769026239129,-500.0,0.00016174,2]
[402991078,1769026239139,-434.08570023,0.00016174,2]